bitfinex/quotes_ETHUSD_20250822
["timestamp","ask_amount","ask_price","bid_price","bid_amount"]
[1755879296492,0.4744,4769.9,4767.3,0.18066454]
[1755879296667,3.0,4769.7,4767.4,30.18079574]
[1755879296872,6.198,4769.8,4767.5,30.18078503]
[1755879297068,6.198,4769.8,4767.6,25.33878503]
[1755879297267,6.198,4769.8,4767.7,30.20171409]
[1755879297491,6.198,4769.8,4766.0,2.60470654]
[1755879297492,6.198,4769.8,4767.8,0.18073962]
[1755879297655,1.746,4770.1,4767.9,17.02697359]
[1755879297966,0.4744,4771.5,4768.1,3.66]
[1755879298166,0.4744,4771.5,4768.3,0.66]
[1755879298377,0.4744,4771.5,4768.4,40.18073375]
[1755879298691,0.4744,4771.5,4768.5,30.18073375]
[1755879298990,0.4744,4771.5,4768.6,30.18073375]
[1755879299290,1.746,4771.9,4768.8,0.66]
[1755879299493,1.746,4771.9,4769.0,0.66]
[1755879299696,1.746,4771.9,4769.1,46.35173375]
[1755879299860,1.746,4771.9,4769.3,0.66]
[1755879300057,1.746,4771.9,4769.4,40.18073375]
[1755879300282,1.746,4771.9,4769.5,30.18073375]
[1755879300468,1.746,4771.9,4769.6,30.18073375]
[1755879300669,12.46564059,4771.5,4769.7,0.18073375]
[1755879300955,3.0,4771.3,4766.8,58.0079]
[1755879301157,0.4744,4771.2,4766.9,36.33564308]
[1755879301391,0.4744,4771.2,4767.0,30.17964308]
[1755879301692,0.4744,4771.2,4766.9,0.15377507]
[1755879301693,3.66,4770.2,4766.1,2.07714207]
[1755879301895,5.2204,4770.1,4766.8,1.269]
[1755879302080,3.66,4769.3,4766.1,2.23310118]
[1755879302282,3.0,4769.4,4766.2,30.0]
[1755879302592,3.0,4769.2,4766.3,12.34498063]
[1755879302791,3.0,4769.2,4766.1,0.15595911]
[1755879302792,8.456,4769.2,4766.1,0.15595911]
[1755879302955,6.6154,4769.1,4764.4,10.20214779]
[1755879303277,0.66,4768.9,4764.0,30.0]
[1755879303477,0.4744,4768.8,4764.1,0.20236146]
[1755879303691,12.46564059,4767.5,4764.2,10.0]
[1755879303893,3.0,4768.3,4762.8,63.4639]
[1755879303894,3.0,4766.5,4762.8,58.0079]
[1755879304201,5.2204,4767.4,4759.8,5.456]
[1755879304202,12.46564059,4765.2,4759.8,5.456]
[1755879304492,5.2204,4765.1,4759.9,40.18179958]
[1755879304694,3.0,4764.1,4760.0,17.352]
[1755879305000,0.66,4763.8,4759.8,0.16058234]
[1755879305182,12.46564059,4762.4,4757.2,12.46564059]
[1755879305371,10.87,4762.3,4757.3,10.001]
[1755879305558,3.0,4761.8,4757.4,10.0]
[1755879305760,3.0,4761.6,4757.3,0.08779473]
[1755879306000,3.0,4761.6,4757.3,0.001]
[1755879306167,1.746,4761.5,4758.8,30.0]
[1755879306481,1.746,4761.5,4758.9,30.0]
[1755879306684,1.746,4761.5,4757.3,0.001]
[1755879306878,0.4744,4761.4,4758.8,14.034]
[1755879307079,0.4744,4761.4,4758.0,0.15541982]
[1755879307263,1.746,4761.5,4758.8,30.0]
[1755879307466,6.5824,4761.4,4758.8,30.0]
[1755879307661,6.104,4761.3,4758.9,3.0]
[1755879307967,1.746,4761.5,4759.2,0.66]
[1755879308169,1.747,4763.4,4761.5,30.0]
[1755879308368,5.46,4765.0,4758.0,0.15541982]
[1755879308369,1.747,4764.9,4760.9,0.66]
[1755879308573,1.747,4764.9,4760.1,30.0]
[1755879308574,0.461,4764.8,4761.0,40.02100399]
[1755879308759,6.564,4764.8,4758.8,1.53193561]
[1755879308974,0.461,4764.7,4759.1,3.66]
[1755879309173,0.461,4764.7,4759.3,3.0]
[1755879309420,0.461,4764.7,4759.6,0.66]
[1755879309708,1.966,4764.6,4763.8,0.02]
[1755879309882,1.966,4764.6,4760.8,0.02]
[1755879309883,0.66,4763.9,4760.8,0.02]
[1755879310086,0.66,4763.2,4760.8,0.02]
[1755879310285,2.208,4763.1,4760.8,0.02]
[1755879310500,10.258,4763.0,4760.8,0.02]
[1755879311002,3.66,4762.8,4760.8,0.02]
[1755879311176,3.66,4762.8,4759.8,0.02]
[1755879311372,3.66,4761.9,4759.8,0.02]
[1755879311577,0.461,4763.3,4759.9,30.02100884]
[1755879311771,0.461,4763.3,4759.8,0.02]
[1755879311772,0.461,4763.3,4760.1,3.0]
[1755879312023,1.89,4763.2,4759.8,0.02]
[1755879312181,0.461,4763.1,4759.8,0.02]
[1755879312508,0.66,4762.9,4759.8,0.02]
[1755879312914,0.66,4762.7,4759.8,0.02]
[1755879313118,0.1048,4759.9,4759.8,0.02]
[1755879313409,1.8528,4759.9,4759.8,0.02]
[1755879313610,0.461,4762.8,4759.9,30.0]
[1755879313789,0.461,4762.8,4760.0,0.0210084]
[1755879313985,0.461,4762.8,4759.8,0.02]
[1755879314187,0.1048,4760.0,4759.8,0.02]
[1755879314390,1.748,4760.6,4759.8,0.02]
[1755879314587,1.748,4760.5,4759.8,0.02]
[1755879314915,2.209,4760.5,4759.8,0.02]
[1755879315228,5.924,4760.4,4759.8,0.02]
[1755879315384,3.0,4760.3,4759.8,0.02]
[1755879315582,0.66,4760.2,4759.8,0.02]
[1755879315777,0.461,4760.2,4759.8,0.02]
[1755879316002,0.461,4760.1,4759.8,0.02]
[1755879316421,3.461,4760.0,4759.8,0.02]
[1755879316789,1.121,4759.9,4759.8,0.02]
[1755879317112,0.66,4759.8,4758.8,0.02]
[1755879317314,1.121,4759.8,4758.8,0.02]
[1755879317625,0.66,4759.6,4757.8,0.02]
[1755879317797,3.0,4759.4,4757.8,0.02]
[1755879318334,0.461,4759.3,4757.8,0.02]
[1755879318719,0.66,4759.2,4757.8,0.02]
[1755879318921,0.66,4759.0,4757.8,0.02]
[1755879319122,3.66,4759.0,4757.8,0.02]
[1755879319327,0.66,4758.8,4757.8,0.02]
[1755879319545,0.461,4758.9,4757.8,0.02]
[1755879319736,1.748,4759.1,4757.8,0.02]
[1755879320021,0.461,4758.8,4757.8,0.02]
[1755879320207,7.885,4759.1,4757.8,0.02]
[1755879320694,7.885,4759.1,4757.9,0.02101767]
[1755879320891,7.885,4759.1,4757.8,0.02]
[1755879320892,1.749,4760.4,4757.8,0.02]
[1755879321123,1.749,4760.4,4758.2,30.0]
[1755879321425,1.749,4760.4,4758.4,0.66]
[1755879321610,1.749,4760.4,4758.3,3.1006]
[1755879321611,1.749,4763.7,4760.4,30.0]
[1755879321811,1.749,4763.7,4758.3,3.0]
[1755879321812,7.879,4763.6,4760.5,0.12160619]
[1755879321989,0.461,4763.5,4759.8,10.0]
[1755879322188,0.461,4763.5,4759.1,0.1006]
[1755879322390,3.461,4763.5,4758.3,10.0]
[1755879322625,0.66,4763.3,4758.4,3.68101546]
[1755879322926,0.66,4763.1,4758.1,0.001]
[1755879323429,0.66,4762.9,4758.3,3.0]
[1755879323591,1.749,4763.6,4758.3,3.0]
[1755879323592,0.461,4762.8,4758.6,0.66]
[1755879323933,2.483,4762.7,4758.7,30.0]
[1755879324223,0.66,4762.5,4758.1,0.001]
[1755879324408,0.1048,4758.9,4758.1,0.001]
[1755879324728,6.111,4759.9,4758.2,30.0]
[1755879325020,0.461,4761.3,4758.3,3.0]
[1755879325206,0.461,4761.3,4758.2,30.0]
[1755879325207,0.461,4761.3,4759.1,0.1048]
[1755879325609,0.461,4761.3,4759.2,0.02101193]
[1755879325810,0.10981009,4761.9,4759.3,30.0]
[1755879326012,0.1048,4759.4,4758.1,0.001]
[1755879326208,0.1048,4759.4,4758.2,0.1048]
[1755879326392,0.1048,4758.9,4758.2,0.1048]
[1755879326589,0.1048,4758.9,4758.1,0.001]
[1755879326590,1.749,4759.7,4758.3,8.3750159]
[1755879326789,1.749,4759.7,4758.1,0.001]
[1755879327092,7.839,4759.7,4758.1,0.001]
[1755879328696,3.0,4759.6,4758.1,0.001]
[1755879328895,0.66,4759.5,4758.1,0.001]
[1755879329114,1.121,4759.5,4758.1,0.001]
[1755879329315,0.66,4759.3,4758.1,0.001]
[1755879329516,0.66,4759.0,4757.8,0.02]
[1755879330021,0.66,4758.8,4757.8,0.02]
[1755879330397,0.461,4758.7,4757.8,0.02]
[1755879330596,0.66,4758.6,4757.8,0.02]
[1755879330839,0.461,4758.7,4757.8,0.02]
[1755879331196,8.40986848,4759.7,4757.8,0.02]
[1755879331645,8.3,4759.7,4757.8,0.02]
[1755879331932,0.461,4759.6,4757.8,0.02]
[1755879332099,3.461,4759.6,4757.8,0.02]
[1755879332299,1.121,4759.5,4757.8,0.02]
[1755879332635,13.07425239,4759.4,4757.8,0.02]
[1755879332928,0.66,4759.2,4757.8,0.02]
[1755879333349,3.66,4759.0,4757.8,0.02]
[1755879333646,0.66,4758.8,4757.8,0.02]
[1755879334145,0.66,4758.6,4757.8,0.02]
[1755879334446,3.0,4758.4,4757.8,0.02]
[1755879334728,5.468,4758.5,4757.8,0.02]
[1755879334729,7.764,4758.3,4757.8,0.02]
[1755879334932,0.10987166,4759.3,4757.8,0.02]
[1755879335144,6.001,4759.2,4757.8,0.02]
[1755879335805,6.001,4759.2,4757.9,0.18587044]
[1755879336004,6.001,4759.2,4758.0,0.18587044]
[1755879336208,5.93,4759.1,4758.1,0.18587044]
[1755879336436,5.93,4759.1,4757.8,0.02]
[1755879336739,5.93,4759.1,4757.6,0.001]
[1755879336740,0.1048,4757.9,4757.6,0.001]
[1755879336935,7.744,4757.8,4757.6,0.001]
[1755879337147,3.461,4759.0,4757.6,0.001]
[1755879337148,7.74,4757.7,4757.6,0.001]
[1755879337329,8.201,4757.7,4757.6,0.001]
[1755879338646,8.861,4757.7,4757.6,0.001]
[1755879338856,8.861,4757.7,4757.3,0.001]
[1755879338857,0.66,4757.6,4757.3,0.001]
[1755879339043,4.0965,4757.6,4757.1,0.001]
[1755879339241,0.4365,4757.5,4757.1,0.001]
[1755879339453,0.66,4757.4,4757.1,0.001]
[1755879339951,7.74,4757.7,4753.6,1.13627233]
[1755879339952,3.66,4757.1,4755.0,0.18644822]
[1755879340167,3.0,4755.9,4755.1,0.18644822]
[1755879340309,0.66,4756.9,4750.8,1.41867514]
[1755879340310,3.0,4755.0,4751.1,0.1236]
[1755879340508,13.164,4754.9,4752.9,0.18642701]
[1755879340716,13.6005,4754.9,4751.2,0.02104731]
[1755879340925,13.6005,4754.9,4751.6,0.15869465]
[1755879341145,1.75,4754.9,4752.2,0.1436]
[1755879341612,3.955,4754.8,4751.8,0.68]
[1755879342150,3.955,4754.8,4752.6,0.1436]
[1755879342454,3.955,4754.8,4752.9,0.66]
[1755879342779,5.9065,4756.3,4756.1,0.001]
[1755879343066,6.3515,4756.2,4756.1,0.001]
[1755879343357,7.665,4756.2,4756.1,0.001]
[1755879344264,1.75,4756.2,4756.1,0.001]
[1755879344460,0.4365,4758.3,4756.1,0.001]
[1755879344614,1.75,4757.6,4756.1,0.1446]
[1755879344815,0.002,4759.7,4756.3,3.66]
[1755879345119,7.651,4759.6,4756.5,3.66]
[1755879345325,5.896,4759.5,4756.4,0.1436]
[1755879345526,5.896,4759.5,4756.6,3.0]
[1755879345826,5.896,4759.5,4756.4,0.1436]
[1755879346140,5.896,4759.5,4756.5,0.02102386]
[1755879346341,0.4365,4759.4,4756.1,0.001]
[1755879346543,3.66,4759.2,4756.1,0.001]
[1755879346722,3.0,4759.2,4756.1,0.001]
[1755879347047,0.1048,4756.7,4756.1,0.001]
[1755879347251,5.884,4756.6,4756.1,0.001]
[1755879347630,0.1048,4756.3,4756.1,0.001]
[1755879350440,2.1865,4758.4,4756.1,0.001]
[1755879350676,0.4365,4759.5,4756.3,0.66]
[1755879350832,5.839,4759.4,4756.5,3.66]
[1755879351031,5.839,4759.4,4756.7,3.66]
[1755879351237,5.839,4759.4,4756.8,0.18558634]
[1755879351547,5.839,4759.4,4756.9,0.18558634]
[1755879351869,5.839,4759.4,4757.0,0.18558634]
[1755879352069,0.4365,4759.5,4757.1,30.20660755]
[1755879352269,0.002,4759.7,4758.1,3.66]
[1755879352572,0.002,4759.7,4758.4,0.66]
[1755879352882,0.002,4759.7,4758.5,0.18558634]
[1755879353180,0.002,4759.7,4758.8,0.66]
[1755879353382,0.002,4759.7,4759.0,3.66]
[1755879353668,0.002,4759.7,4759.2,3.66]
[1755879353881,0.002,4759.7,4758.1,0.15620163]
[1755879354175,0.002,4759.7,4757.3,1.75]
[1755879354176,0.002,4759.7,4756.8,10.0]
[1755879354334,0.002,4759.7,4756.9,12.57887448]
[1755879354538,0.002,4759.7,4757.1,3.0]
[1755879354757,0.002,4759.7,4757.3,3.0]
[1755879354970,0.002,4759.7,4756.9,12.55785239]
[1755879354971,0.002,4759.7,4757.5,3.0]
[1755879355265,0.002,4759.7,4757.8,0.66]
[1755879355571,0.4385,4759.7,4756.1,0.001]
[1755879355935,4.75,4760.1,4756.2,0.18559075]
[1755879356140,4.75,4760.1,4756.3,0.18559075]
[1755879356353,4.75,4760.1,4756.4,0.18559075]
[1755879356548,4.75,4760.1,4756.5,0.18559075]
[1755879356749,4.75,4760.1,4756.6,0.18559075]
[1755879356950,4.75,4760.1,4756.1,0.1585973]
[1755879356951,4.75,4760.1,4756.1,0.001]
[1755879357341,3.66,4758.7,4756.1,0.001]
[1755879357536,12.41425239,4758.8,4756.1,0.001]
[1755879357537,3.66,4758.5,4756.1,0.001]
[1755879357970,0.66,4758.3,4756.1,0.001]
[1755879358361,0.4365,4758.2,4756.1,0.001]
[1755879358549,3.0,4758.0,4756.1,0.001]
[1755879358756,3.0,4757.8,4756.1,0.001]
[1755879359173,0.4365,4757.7,4756.1,0.001]
[1755879360574,0.1048,4756.2,4756.1,0.001]
[1755879360746,7.6018,4756.2,4756.1,0.001]
[1755879361145,8.0383,4756.2,4756.1,0.001]
[1755879361649,8.0383,4756.2,4755.6,0.001]
[1755879361650,0.66,4756.1,4754.8,0.001]
[1755879361850,0.66,4756.1,4750.7,1.75]
[1755879361851,0.1048,4754.9,4752.2,0.1056]
[1755879362069,0.1048,4752.9,4750.1,12.41425239]
[1755879362273,12.41425239,4755.2,4749.9,0.10992175]
[1755879362274,7.9155,4752.8,4749.9,0.10992175]
[1755879362446,7.9155,4752.8,4748.9,5.47]
[1755879362447,1.75,4752.7,4750.1,12.41425239]
[1755879362642,1.75,4752.7,4750.2,0.02105174]
[1755879362877,0.4365,4752.6,4748.5,0.4415]
[1755879363346,0.4365,4752.6,4748.7,3.0]
[1755879363549,0.43049137,4752.6,4749.3,0.4415]
[1755879364069,0.43049137,4752.6,4749.4,0.02105529]
[1755879364269,0.43049137,4752.6,4750.0,0.02248763]
[1755879364469,5.716,4752.5,4750.0,0.001435]
[1755879364649,1.751,4752.4,4750.9,0.02104864]
[1755879364853,1.751,4752.4,4750.0,0.001435]
[1755879364854,5.716,4752.3,4750.0,0.001435]
[1755879365058,1.751,4752.4,4750.9,0.02104864]
[1755879365260,1.751,4752.4,4750.7,12.41425239]
[1755879365475,1.751,4752.4,4751.0,0.4415]
[1755879365800,5.472,4754.5,4751.7,3.66]
[1755879365801,1.751,4753.4,4751.7,3.66]
[1755879365966,1.751,4755.0,4752.3,3.0]
[1755879366309,1.751,4754.9,4753.2,2.66]
[1755879366490,1.751,4755.9,4753.3,40.46253801]
[1755879366691,0.4365,4757.0,4754.0,12.41425239]
[1755879366692,1.751,4756.3,4754.0,12.41425239]
[1755879366892,1.751,4758.2,4755.9,12.41425239]
[1755879367191,0.36344317,4760.3,4756.8,12.41425239]
[1755879367192,1.751,4759.3,4756.8,12.41425239]
[1755879367519,1.751,4759.3,4756.0,31.28281542]
[1755879367520,0.4365,4760.8,4758.6,12.41425239]
[1755879367812,1.751,4762.1,4759.2,18.726]
[1755879368019,0.002,4763.2,4760.1,12.41425239]
[1755879368301,0.002,4763.2,4760.3,0.66]
[1755879368465,0.4534,4762.6,4759.2,12.86305239]
[1755879368666,1.751,4761.5,4759.3,0.02101149]
[1755879368897,1.751,4761.5,4758.6,1.751]
[1755879369125,1.751,4761.5,4758.5,0.66]
[1755879369261,1.751,4761.5,4758.7,3.0]
[1755879369262,0.02,4758.8,4758.7,3.0]
[1755879369466,0.02,4758.8,4758.7,6.4788]
[1755879369716,0.02,4758.8,4758.7,30.0]
[1755879369861,2.2214,4758.8,4755.8,0.02]
[1755879370069,0.02,4758.8,4756.1,12.41425239]
[1755879370263,0.02,4758.8,4756.2,18.3948]
[1755879370483,0.02,4758.8,4757.1,0.66]
[1755879370683,0.02,4758.8,4756.3,0.4488]
[1755879371126,0.4504,4758.7,4756.8,7.0]
[1755879371331,0.4504,4758.7,4755.1,12.86305239]
[1755879371835,0.4504,4758.7,4755.1,0.4488]
[1755879372029,0.4504,4758.7,4754.2,12.41425239]
[1755879372030,0.4504,4758.7,4754.3,10.0]
[1755879372332,0.4504,4758.7,4755.0,0.4488]
[1755879372489,5.716,4758.6,4755.1,0.66]
[1755879372912,5.716,4758.6,4756.0,3.0]
[1755879373141,1.1104,4758.5,4753.7,0.08584176]
[1755879373299,1.1104,4758.5,4751.6,1.75]
[1755879373300,4.1104,4758.5,4752.8,0.4688]
[1755879373616,0.66,4758.3,4752.9,0.02103978]
[1755879373821,0.66,4758.3,4752.8,0.4688]
[1755879373822,3.66,4758.1,4752.8,0.4688]
[1755879374023,0.66,4757.9,4752.8,0.4688]
[1755879374221,3.66,4757.7,4752.8,0.4688]
[1755879374424,0.66,4757.5,4752.8,0.4688]
[1755879375038,0.66,4757.3,4752.8,0.02]
[1755879375432,0.66,4756.6,4752.8,0.02]
[1755879375732,3.66,4756.4,4752.8,0.02]
[1755879375936,3.0,4756.4,4752.8,0.02]
[1755879376299,0.4504,4756.3,4752.8,0.02]
[1755879376836,3.0,4756.4,4752.8,0.02]
[1755879376837,0.4504,4756.2,4752.8,0.04104022]
[1755879377143,0.4504,4756.2,4752.9,0.02103978]
[1755879377325,0.4504,4756.2,4753.5,0.4488]
[1755879377495,5.716,4756.1,4753.6,0.02103668]
[1755879377702,5.716,4756.0,4753.5,0.4488]
[1755879377895,5.716,4756.0,4753.6,0.02103668]
[1755879378216,5.716,4756.0,4753.5,0.4488]
[1755879378420,6.1664,4756.0,4753.5,0.4488]
[1755879378596,5.716,4756.0,4753.5,0.4488]
[1755879378798,5.715,4756.0,4754.5,0.4488]
[1755879379296,5.715,4756.0,4753.2,1.751]
[1755879379521,5.715,4756.0,4753.7,0.4488]
[1755879379895,1.75,4756.7,4753.2,1.751]
[1755879380101,5.715,4756.6,4754.1,0.4488]
[1755879380524,5.715,4756.6,4754.2,0.02103403]
[1755879380832,5.715,4756.6,4754.1,0.4488]
[1755879381041,5.715,4756.6,4754.2,0.02103403]
[1755879381345,5.715,4756.6,4754.1,0.4488]
[1755879382395,5.715,4756.6,4754.2,0.02103403]
[1755879382910,5.714,4756.5,4754.2,0.02103403]
[1755879383116,0.1048,4755.9,4754.2,0.12583403]
[1755879383639,0.1048,4755.9,4754.7,0.1048]
[1755879383846,0.1048,4755.9,4755.2,0.1048]
[1755879384007,0.1048,4755.9,4754.8,0.4688]
[1755879384213,0.1048,4755.9,4754.8,0.02]
[1755879384625,0.1048,4755.9,4754.8,0.04103137]
[1755879385140,0.1048,4755.9,4754.8,0.02]
[1755879385341,0.5552,4755.9,4754.8,0.02]
[1755879386932,1.2152,4755.9,4754.8,0.02]
[1755879387333,3.5552,4755.9,4754.8,0.02]
[1755879387612,0.66,4755.8,4754.8,0.02]
[1755879387846,0.1048,4754.9,4754.8,0.02]
[1755879388054,7.5668,4754.9,4754.8,0.02]
[1755879388253,8.0172,4754.9,4754.8,0.02]
[1755879388464,8.6772,4754.9,4754.8,0.02]
[1755879388664,7.9124,4754.9,4754.8,0.02]
[1755879388815,10.9124,4754.9,4753.8,0.02]
[1755879389148,0.66,4754.7,4753.8,0.02]
[1755879389454,3.66,4754.5,4751.3,0.001]
[1755879389633,0.66,4754.4,4753.8,0.001]
[1755879389834,1.1104,4754.4,4753.8,0.001]
[1755879390019,0.66,4754.2,4753.8,0.001]
[1755879390410,0.4504,4754.1,4753.8,0.001]
[1755879390847,0.66,4754.0,4753.8,0.001]
[1755879391213,9.8204,4753.9,4753.8,0.001]
[1755879391408,2.2014,4753.9,4753.8,0.001]
[1755879391642,7.9114,4753.9,4753.8,0.001]
[1755879392444,6.84482817,4753.9,4753.8,0.1866132]
[1755879392741,7.29522817,4753.9,4753.8,0.1866132]
[1755879393128,0.66,4753.8,4751.3,0.001]
[1755879393336,1.1104,4753.8,4751.3,0.001]
[1755879393523,0.4504,4753.7,4751.3,0.001]
[1755879393720,7.224,4753.6,4751.3,0.001]
[1755879393923,1.751,4753.5,4751.7,0.4488]
[1755879394111,7.459,4753.4,4751.7,0.4488]
[1755879394317,5.708,4753.3,4751.9,0.02104421]
[1755879394525,5.708,4753.3,4751.7,0.4488]
[1755879395044,5.708,4753.3,4751.4,0.4488]
[1755879395248,0.4504,4753.2,4751.3,0.001]
[1755879395746,5.708,4753.1,4752.1,0.4488]
[1755879395947,5.708,4753.0,4752.9,0.4488]
[1755879396247,5.708,4753.0,4751.3,0.001]
[1755879396248,5.708,4753.0,4751.9,0.4488]
[1755879396419,5.708,4753.0,4752.9,0.4488]
[1755879396616,1.751,4753.4,4751.3,0.001]
[1755879396617,1.751,4753.4,4752.3,0.4488]
[1755879396846,5.707,4753.3,4752.3,0.4488]
[1755879397348,1.751,4753.4,4752.1,0.4488]
[1755879397655,5.706,4753.3,4751.9,0.4488]
[1755879397817,1.751,4753.4,4751.4,0.66]
[1755879398023,5.706,4753.3,4752.1,0.4488]
[1755879398223,1.751,4753.4,4752.2,0.02104288]
[1755879398555,5.706,4753.3,4752.9,0.4426]
[1755879398851,0.1048,4753.2,4752.9,0.4426]
[1755879399153,0.1048,4753.0,4752.2,0.1056]
[1755879399358,0.1048,4753.0,4752.9,0.4426]
[1755879399914,5.704,4753.0,4752.9,0.4426]
[1755879400154,1.751,4753.4,4752.9,0.4426]
[1755879400353,5.704,4753.3,4753.0,0.4426]
[1755879400525,5.704,4753.3,4753.1,0.4426]
[1755879400727,1.751,4753.4,4753.2,0.4426]
[1755879400931,1.751,4753.4,4753.3,0.4426]
[1755879401137,7.454,4753.4,4753.3,0.4426]
[1755879401314,1.751,4753.4,4753.3,0.4426]
[1755879401520,5.702,4754.2,4753.3,0.5474]
[1755879401747,0.1048,4754.0,4753.4,0.66]
[1755879401920,1.751,4756.3,4754.1,0.66]
[1755879402239,1.751,4756.3,4753.8,12.44582125]
[1755879402240,5.702,4756.2,4754.3,3.0]
[1755879402563,5.702,4756.2,4754.2,13.4276]
[1755879402564,5.702,4756.2,4754.2,0.4426]
[1755879402721,5.702,4756.2,4754.3,0.66]
[1755879403055,5.702,4756.2,4754.2,0.4426]
[1755879404321,5.702,4756.2,4752.9,3.0]
[1755879404540,5.702,4756.2,4753.0,0.46363934]
[1755879404760,5.702,4756.2,4753.2,0.66]
[1755879404971,5.702,4756.2,4753.3,0.02103801]
[1755879405772,5.702,4756.2,4753.4,0.3526]
[1755879405929,5.702,4756.2,4753.5,0.02103713]
[1755879406447,2.1818,4756.3,4753.6,30.0]
[1755879406643,0.002,4757.2,4754.2,12.44582125]
[1755879406848,0.002,4757.2,4753.7,3.67950641]
[1755879406849,0.002,4757.2,4756.1,3.66]
[1755879407054,0.002,4757.2,4755.3,0.66]
[1755879407225,1.751,4756.9,4754.3,0.15782576]
[1755879407531,0.00452983,4756.7,4754.5,3.0]
[1755879407738,5.694,4756.7,4754.6,0.46363226]
[1755879407935,1.751,4756.9,4754.6,0.46363226]
[1755879407936,1.751,4756.9,4754.7,0.66]
[1755879408141,5.694,4756.6,4755.1,3.66]
[1755879408328,0.002,4756.8,4755.3,0.66]
[1755879408529,0.002,4756.8,4755.5,0.66]
[1755879408751,0.002,4756.8,4755.7,3.66]
[1755879408959,0.002,4756.8,4755.4,0.4426]
[1755879409160,0.002,4756.8,4756.0,0.66]
[1755879409366,0.002,4757.2,4756.2,3.66]
[1755879409663,0.002,4757.2,4756.4,3.0]
[1755879409852,0.002,4757.2,4756.2,0.66]
[1755879410234,0.002,4757.2,4756.1,0.4426]
[1755879410429,0.002,4757.2,4756.2,0.66]
[1755879411254,0.002,4757.2,4756.4,12.44582125]
[1755879411445,1.41108784,4757.6,4756.6,3.66]
[1755879411632,1.41108784,4757.6,4756.8,3.66]
[1755879411832,1.41108784,4757.6,4755.0,5.472]
[1755879411833,20.0,4758.5,4757.7,0.66]
[1755879412075,20.0,4758.5,4757.9,3.66]
[1755879412278,20.0,4758.5,4756.8,0.4426]
[1755879412598,1.75452983,4758.4,4757.5,0.1048]
[1755879412736,0.1048,4757.8,4757.0,0.1048]
[1755879413078,1.75452983,4758.4,4756.0,0.4426]
[1755879413079,0.1048,4757.2,4756.6,0.1048]
[1755879413380,0.1048,4757.2,4755.4,12.44582125]
[1755879413381,0.00452983,4757.1,4755.0,0.4426]
[1755879413540,0.1048,4756.7,4756.0,0.1048]
[1755879413737,5.68952983,4756.6,4755.2,0.0210296]
[1755879413936,5.685,4756.6,4755.2,0.0210296]
[1755879414239,5.684,4756.7,4755.3,0.4426]
[1755879414442,0.1048,4756.2,4755.5,0.1048]
[1755879414648,0.1048,4756.2,4752.1,1.80206212]
[1755879414649,0.1048,4755.6,4752.4,0.1056]
[1755879414871,0.1048,4755.6,4752.2,10.0]
[1755879414872,7.86932983,4755.5,4752.1,10.0]
[1755879415178,7.8648,4755.5,4752.2,10.0]
[1755879415380,0.1048,4753.5,4752.9,0.1048]
[1755879415668,5.682,4753.7,4753.1,0.1048]
[1755879415974,5.7868,4753.7,4753.2,0.02103845]
[1755879416184,5.682,4753.6,4753.2,0.02103845]
[1755879416368,5.682,4753.6,4753.3,0.02103801]
[1755879416536,0.00452983,4753.5,4752.0,0.4426]
[1755879416737,0.1048,4753.0,4752.4,0.1056]
[1755879416937,0.1048,4753.0,4752.5,0.02104155]
[1755879417365,0.1048,4753.0,4752.4,0.1056]
[1755879417574,0.1048,4753.0,4751.8,0.388]
[1755879417868,0.1048,4753.0,4752.2,0.1056]
[1755879418240,0.43532983,4752.9,4751.8,0.388]
[1755879419139,1.75,4754.0,4751.9,0.02104421]
[1755879419339,1.75,4754.0,4751.8,0.388]
[1755879419340,5.68352983,4753.9,4751.8,0.388]
[1755879419544,0.4308,4753.6,4751.8,0.388]
[1755879419764,0.00452983,4753.5,4751.8,0.388]
[1755879420494,0.4308,4753.4,4751.8,0.388]
[1755879420635,0.00452983,4753.3,4751.8,0.388]
[1755879420839,0.00452983,4753.3,4751.9,0.02104421]
[1755879421062,5.677,4753.2,4751.8,0.389]
[1755879421251,0.00452983,4753.1,4751.8,0.389]
[1755879421448,1.75,4754.0,4751.8,0.389]
[1755879421449,5.677,4753.0,4751.8,0.389]
[1755879421654,0.00452983,4752.9,4751.8,0.389]
[1755879421874,0.43532983,4752.9,4751.8,0.389]
[1755879423080,5.675,4752.8,4751.8,0.389]
[1755879423281,0.43532983,4752.7,4751.8,0.389]